{"text_format":"1","workbook":"xlsx","n_sheets":6,"sheets":["Ark1","Ark2","Ark3","Ark4","Ark5","Ark6"],"not_rendered":{"charts":0,"images":0,"macros":1,"external_links":0,"defined_names":0,"comments":0,"pivot_tables":0},"unopened":[],"bounds":{"document_bytes":16777216,"sheet_cells":100000,"rows_first":2000,"rows_last":500,"rows_between":2000,"halvings":0,"cell_chars":16384,"cell_head_chars":4096},"cells_cut":0,"cells_raw":0,"read":"whole","date_system":"1900"}

{"sheet":"Ark1","index":0,"n_rows":122,"n_cols":79,"rows_kept":122,"cut":false,"hidden":false,"merged":[[29,16,29,30],[16,0,16,13],[9,0,9,13],[24,16,24,30],[25,16,25,30],[26,16,26,30],[27,16,27,30],[28,16,28,30]]}
[]
["Nøgle til de danske Melangyna-HUNNER. (Diptera: Syrphidae)",null,null,null,null,null,null,null,null,null,null,null,null,null,null,null,null,null,null,null,null,null,null,null,null,null,null,null,null,null,null,null,null,null,null,null,null,null,null,null,null," ",null,null," "]
[]
[null,null,null,null,"HUNNER",null,null,null,null,null,null,null,null,null,null,null,null,null,{"$f":"IF(AQ9=1,VLOOKUP(AQ8,BK11:BL23,2,FALSE),\"         Melangyna sp.\")","v":"     Melangyna lucifera "}]
[]
["Pande sort, uden bestøvning ?",null,null,null,null,null,null,null,null,null,null,null,null,null,null,null,null,null,null,{"$f":"IF(AQ9=1,VLOOKUP(AQ8,BA26:BB39,2,FALSE),\"          Svirreflue\")","v":"   Lysende Svirreflue"},null,null,null,null,null,null,null,null,null,null,null,null,null,null,null," ","Afkrydsede felter",null,null,null,null,null,{"$f":"SUM(AR6+AT6+AV6+AY6+BA6+BC6+BE6+BG6+BI6)","v":4},{"$f":"IF(AS6=0,0,1)","v":0},{"$f":"SUM(AR7:AS7)","v":0},{"$f":"IF(AU6=0,0,1)","v":1},{"$f":"SUM(AT7:AU7)","v":1},{"$f":"IF(AW6=0,0,1)","v":1},{"$f":"SUM(AV7:AX7)","v":1},null,{"$f":"IF(AZ6=0,0,1)","v":1},{"$f":"SUM(AY7:AZ7)","v":1},{"$f":"IF(BB6=0,0,1)","v":1},{"$f":"SUM(BA7:BB7)","v":1},{"$f":"IF(BD6=0,0,1)","v":0},{"$f":"SUM(BC7:BD7)","v":0},{"$f":"IF(BF6=0,0,1)","v":0},{"$f":"SUM(BE7:BF7)","v":0},{"$f":"IF(BH6=0,0,1)","v":0},{"$f":"SUM(BG7:BH7)","v":0},{"$f":"IF(BJ6=0,0,1)","v":0},{"$f":"SUM(BI7:BJ7)","v":0},null,null,null,null,null,null,null,null,null,null,null,null,null,null,{"$f":"IF(CA6,\"x\",\" \")","v":" "},null,false]
["Pande mere eller mindre bestøvet ?",null,null,null,null,null,null,null,null,null,null,null,null,null,null,null,null,{"$f":"IF(AQ9=1,\"      Fluen er nu bestemt.  Se ovenfor. \",IF(AQ6=0,\" \",IF(AQ6>AQ8,\" \",\"Se de mulige arter i oversigten nedenfor.\")))","v":"      Fluen er nu bestemt.  Se ovenfor. "},null,null,null,null,null,null,null,null,null,null,null,null,null,null,null,null,null,null,null,null,null,null,null,null,null,{"$f":"IF(BY6=\" \",0,1)","v":0},{"$f":"IF(BY7=\" \",0,1)","v":0},{"$f":"IF(BY9=\" \",0,1)","v":1},{"$f":"IF(BY10=\" \",0,1)","v":0},{"$f":"IF(BY12=\" \",0,1)","v":0},{"$f":"IF(BY13=\" \",0,1)","v":1},{"$f":"IF(BY14=\" \",0,1)","v":0},{"$f":"IF(BY16=\" \",0,1)","v":0},{"$f":"IF(BY17=\" \",0,1)","v":1},{"$f":"IF(BY19=\" \",0,1)","v":0},{"$f":"IF(BY20=\" \",0,1)","v":1},{"$f":"IF(BY22=\" \",0,1)","v":0},{"$f":"IF(BY23=\" \",0,1)","v":0},{"$f":"IF(BY25=\" \",0,1)","v":0},{"$f":"IF(BY26=\" \",0,1)","v":0},{"$f":"IF(BY28=\" \",0,1)","v":0},{"$f":"IF(BY29=\" \",0,1)","v":0},{"$f":"IF(BY30=\" \",0,1)","v":0},{"$f":"IF(BY31=\" \",0,1)","v":0},null,null,null,null,null,null,null,null,null,null,null,null,null,null,{"$f":"IF(CA7,\"x\",\" \")","v":" "},null,0]
[null,null,null,null,null,null,null,null,null,null,null,null,null,null,null,null,{"$f":"IF(AQ6>AQ8,\"Afkrydsede kendetegn passer ikke med nøglens.\",\" \")","v":" "},null,null,null,null,null,null,null,null,null,null,null,null,null,null,null,null," ",null,null,null,null,null,"Maks.",null,null,{"$f":"MAX(AQ11:AQ23)","v":4},null,null,null,null,null,null,null,null,null,null,null,null,null,null,null,null,null,null,null,null,null,null,null,null,null,null,null,null,null,null,null,null,null," "]
["Øjne mere eller mindre behårede ?",null,null,null,null,null,null,null,null,null,null,null,null,null,null,null,{"$f":"IF(AQ6>AQ8,\"Det gør en bestemmelse tvivlsom.    Prøv igen !\",\" \")","v":" "},null,null,null,null,null,null,null,null,null,null,null,null,null,null,null,null,null,null,null,null,null,"Antal Maks.",null,null,null,{"$f":"COUNTIF(AQ11:AQ23,AQ8)","v":1},null,null,null,null,null,null,null,null,null,null,null,null,null,null,null,null,null," ",null,null,null,null,null,null,null,null,null,null,null,null,null,null,null,{"$f":"IF(CA9,\"x\",\" \")","v":"x"},null,true]
["Ingen øjenbehåring synlig ?",null,null,null,null,null,null,null,null,null,null,null,null,null,null,null,null,null,null,null,null,null,null,null,null,null,null,null,null,null,null,null,null,null,null,null,null,null,null,null,null,null,"sum","ansigt",null,"øjne",null,"sct",null,null,"bagkrop",null,"pl",null,"runde",null,null,null,"overside",null,null,null,"sum",null,null,null,null,null,null,null,null,null,null,null,null,null,{"$f":"IF(CA10,\"x\",\" \")","v":" "},null,0]
[null,null,null,null,null,null,null,null,null,null,null,null,null,null,null,null," ",null,1,{"$f":"IF(AQ11=AQ8,AI11,\" \")","v":" "},null,null,null,null,null,null,null,null,null,null," ",null,null,1,"barbifrons",null,null,null,null,null,null,null,{"$f":"SUM(AR11:BJ11)","v":1},{"$f":"IF(BY6=\"x\",1,\" \")","v":" "},null,null,{"$f":"IF($BY$10=\"x\",1,\" \")","v":" "},null,null,{"$f":"IF($BY$14=\"x\",1,\" \")","v":" "},null,{"$f":"IF($BY$17=\"x\",1,\" \")","v":1},{"$f":"IF($BY$19=\"x\",1,\" \")","v":" "},null,null,{"$f":"IF($BY$23=\"x\",1,\" \")","v":" "},null,{"$f":"IF($BY$26=\"x\",1,\" \")","v":" "},null,{"$f":"IF($BY$29=\"x\",1,\" \")","v":" "},{"$f":"IF($BY$30=\"x\",1,\" \")","v":" "},{"$f":"IF($BY$31=\"x\",1,\" \")","v":" "},{"$f":"SUM(AR11:BJ11)","v":1},"    Melangyna barbifrons",null,null,null,null,null,null,null,null,null,null,null,null," "]
["Scutellum gulligt med sort plet i forhjørnerne ?",null,null,null,null,null,null,null,null,null,null,null,null,null,null,null,null,null,2,{"$f":"IF(AQ12=AQ8,AI12,\" \")","v":" "},null,null,null,null,null,null,null,null,null,null,null,null,null,2,"compositarum",null,null,null,null,null,null,null,2," ",{"$f":"IF(BY7=\"x\",1,\" \")","v":" "},{"$f":"IF($BY$9=\"x\",1,\"\")","v":1},{"$f":"IF($BY$10=\"x\",1,\" \")","v":" "},{"$f":"IF(BY12=\"x\",1,\" \")","v":" "},null,null,null,{"$f":"IF($BY$17=\"x\",1,\" \")","v":1},{"$f":"IF($BY$19=\"x\",1,\" \")","v":" "}," ",null,{"$f":"IF($BY$23=\"x\",1,\" \")","v":" "},null,{"$f":"IF($BY$26=\"x\",1,\" \")","v":" "},null," ",null," ",2,"Melangyna compositarum",null,null,null,null,null,null,null,null,null,null,null,null,{"$f":"IF(CA12,\"x\",\" \")","v":" "},null,false]
["Sorte plet kileformet forlænget på sidekanten ? ",null,null,null,null,null,null,null,null,null,null,null,null,null,null,null,null,null,3,{"$f":"IF(AQ13=AQ8,AI13,\" \")","v":" "},null,null,null,null,null,null,null,null,null,null,null,null,null,3,"lasiophthalma",null,null,null,null,null,null,null,{"$f":"SUM(AR13:BJ13)","v":3}," ",{"$f":"IF(BY7=\"x\",1,\" \")","v":" "},{"$f":"IF($BY$9=\"x\",1,\"\")","v":1}," ",null,{"$f":"IF($BY$13=\"x\",1,\" \")","v":1},null,null,{"$f":"IF($BY$17=\"x\",1,\" \")","v":1},{"$f":"IF($BY$19=\"x\",1,\" \")","v":" "},null,null," ",null," ",null," ",null," ",{"$f":"SUM(AR13:BJ13)","v":3},"Melangyns lasiophthalma",null,null,null,null,null,null,null,null,null,null,null,null,{"$f":"IF(CA13,\"x\",\" \")","v":"x"},null,true]
["Scutellum helt sort eller på midten sortbrunt ?",null,null,null,null,null,null,null,null,null,null,null,null,null,null,null,null,null,4,{"$f":"IF(AQ14=AQ8,AI14,\" \")","v":"lucifera "},null,null,null,null,null,null,null,null,null,null,null,null,null,4,"lucifera ",null,null,null,null,null,null,null,4,null,{"$f":"IF(BY7=\"x\",1,\" \")","v":" "},1," ",null,{"$f":"IF($BY$13=\"x\",1,\" \")","v":1},null,null,1," ",{"$f":"IF($BY$20=\"x\",1,\" \")","v":1},{"$f":"IF($BY$22=\"x\",1,\" \")","v":" "},null,{"$f":"IF($BY$25=\"x\",1,\" \")","v":" "},null,null,{"$f":"IF($BY$29=\"x\",1,\" \")","v":" "},null," ",4,"     Melangyna lucifera ",null,null,null,null,null,null,null,null,null,null,null,null,{"$f":"IF(CA14,\"x\",\" \")","v":" "},null,false]
[null,null,null,null,null,null,null,null,null,null,null,null,null,null,null,null,null,null,5,{"$f":"IF(AQ15=AQ8,AI15,\" \")","v":" "},null,null,null,null,null,null,null,null,null,null,null,null,null,5,"pavlovskyi",null,null,null,null,null,null,null,3,null,{"$f":"IF(BY7=\"x\",1,\" \")","v":" "},1," "," ",{"$f":"IF($BY$13=\"x\",1,\" \")","v":1},null,null,1,{"$f":"IF($BY$19=\"x\",1,\" \")","v":" "},null,{"$f":"IF($BY$22=\"x\",1,\" \")","v":" "},null,null," ",null,{"$f":"IF($BY$29=\"x\",1,\" \")","v":" "},null," ",3,"   Melangyna pavlovskyi",null,null,null,null,null,null,null,null,null,null,null,null," "]
["Bagkrop sort ?",null,null,null,null,null,null,null,null,null,null,null,null,null,null,null,null,null,6,{"$f":"IF(AQ16=AQ8,AI16,\" \")","v":" "},null,null,null,null,null,null,null,null,null,null,null,null,null,6,"quadrimaculata",null,null,null,null,null,null,null,1,{"$f":"IF(BY6=\"x\",1,\" \")","v":" "}," ",1," ",null,null,{"$f":"IF($BY$14=\"x\",1,\" \")","v":" "},{"$f":"IF($BY$16=\"x\",1,\" \")","v":" "},null,{"$f":"IF($BY$19=\"x\",1,\" \")","v":" "},null,{"$f":"IF($BY$22=\"x\",1,\" \")","v":" "},null,null," ",null," ",{"$f":"IF($BY$30=\"x\",1,\" \")","v":" "},null,1,"Melangyna quadrimaculata",null,null,null,null,null,null,null,null,null,null,null,null,{"$f":"IF(CA16,\"x\",\" \")","v":" "},null,false]
["Bagkrop med lyse sidepletter ? ",null,null,null,null,null,null,null,null,null,null,null,null,null,null,null,null,null,7,{"$f":"IF(AQ17=AQ8,AI17,\" \")","v":" "},null,null,null,null,null,null,null,null,null,null,null,null,null,7,"umbellatarum",null,null,null,null,null,null,null,1,null,{"$f":"IF(BY7=\"x\",1,\" \")","v":" "},null,{"$f":"IF($BY$10=\"x\",1,\" \")","v":" "},{"$f":"IF(BY12=\"x\",1,\" \")","v":" "},null,null,null,1,{"$f":"IF($BY$19=\"x\",1,\" \")","v":" "}," ",null,{"$f":"IF($BY$23=\"x\",1,\" \")","v":" "},null," ",{"$f":"IF($BY$28=\"x\",1,\" \")","v":" "},null,null," ",1,"Melangyna umbellatarum",null,null,null,null,null,null,null,null,null,null,null,null,{"$f":"IF(CA17,\"x\",\" \")","v":"x"},null,true]
[null,null,null,null,null,null,null,null,null,null,null,null,null,null,null,null,null,null,8,null,null,null,null,null,null,null,null,null,null,null,null,null,null,8,".",null,null,null,null,null,null,null,0,null,null,null,null,null,null,null,null,null,null,null,null,null,null,null,null,null,null,null,0,null,null,null,null,null,null,null,null,null,null,null,null,null," "]
["Pletter på 3. - 4. led rektangulære ell. ovale?",null,null,null,null,null,null,null,null,null,null,null,null,null,null,null,null,null,9,null,null,null,null,null,null,null,null,null,null,null,null,null,null,9,".",null,null,null,null,null,null,null,{"$f":"SUM(AR19:BJ19)","v":0},null,null,null,null,null," "," "," ",null,null,null,null," ",null,null," ",null,null,null,{"$f":"SUM(AR19:BJ19)","v":0},null,null,null,null,null,null,null,null,null,null,null,null,null,{"$f":"IF(CA19,\"x\",\" \")","v":" "},null,false]
["Pletterne tilspidsede indadtil ell. manglende ?",null,null,null,null,null,null,null,null,null,null,null,null,null,null,null,null,null,10,null,null,null,null,null,null,null,null,null,null,null,null,null,null,10,".",null,null,null,null,null,null,null,0,null,null,null,null,null,null,null,null,null,null,null,null,null,null,null,null,null,null,null,0,null,null,null,null,null,null,null,null,null,null,null,null,null,{"$f":"IF(CA20,\"x\",\" \")","v":"x"},null,true]
[null,null,null,null,null,null,null,null,null,null,null,null,null,null,null,null,null,null,11,null,null,null,null,null,null,null,null,null,null,null,null,null,null,11,".",null,null,null,null,null,null,null,{"$f":"SUM(AR21:BJ21)","v":0},null,null,null,null,null,null,null,null,null,null,null,null,null,null,null,null,null,null,null,0,null,null,null,null,null,null,null,null,null,null,null,null,null," "]
["På 2. led ingen eller kun små runde pletter ?",null,null,null,null,null,null,null,null,null,null,null,null,null,null,null,null,null,12,null,null,null,null,null,null,null,null,null,null,null,null,null,null,12,".",null,null,null,null,null,null,null,{"$f":"SUM(AR22:BJ22)","v":0},null,null,null,null,null,null,null,null,null,null,null,null,null,null,null,null,null,null,null,0,null,null,null,null,null,null,null,null,null,null,null,null,null,{"$f":"IF(CA22,\"x\",\" \")","v":" "},null,false]
["Pletter på 2. led større, aldrig runde ?",null,null,null,null,null,null,null,null,null,null,null,null,null,null,null,null,null,13,null,null,null,null,null,null,null,null,null,null,null,null,null,null,13,".",null,null,null,null,null,null,null,{"$f":"SUM(AR23:BJ23)","v":0},null,null,null,null,null,null,null,null,null,null,null,null,null,null,null,null,null,null,null,0,null,null,null,null,null,null,null,null,null,null,null,null,null,{"$f":"IF(CA23,\"x\",\" \")","v":" "},null,0]
[null,null,null,null,null,null,null,null,null,null,null,null,null,null,null,null,{"$f":"+CA39","v":4}," Melangyna",null,null,null,{"$f":"VLOOKUP(Q24,AH11:AI23,2)","v":"lucifera "},null,null,null,null,null,null,null,null,null,null,null,null,null,null,null,null,null,null,null,null,null,null,null,null,null,null,null,null,null,null,null,null,null,null,null,null,null,null,null,null,null,null,null,null,null,null,null,null,null,null,null,null,null,null," "]
["Bagkrop med sølvpudrede sidepletter ?",null,null,null,null,null,null,null,null,null,null,null,null,null,null,null,{"$f":"VLOOKUP(Q24,AH26:AI38,2)","v":"Øjne behårede. Ansigt bredt,  gult med sort midter-"},null,null,null,null,null,null,null,null,null,null,null,null,null,null,null,null,null,null,null,null,null,null,null,null,null,null,null,null,null,null,null,null,null,null,null,null,null,null,null,null,null,null,null,null,null,null,null,null,null,null,null,null,null,null,null,null,null,null,null,{"$f":"IF(CA25,\"x\",\" \")","v":" "},null,0]
["Bagkrop ikke sådan?",null,null,null,null,null,null,null,null,null,null,null,null,null,null,null,{"$f":"VLOOKUP(Q24,AH40:AI52,2)","v":"stribe. Panden sort med smalt støvtværbånd, ofte brudt."},null,null,null,null,null,null,null,null,null,null,null,null,null,null,null,1,1,"Pande ubestøvet. Øjne ubehårede. Ansigt bred,  gult ",null,null,null,null,null,null,null,null,null,null,null,null,null,null,null,null,null,{"$f":"SUM(AR11:BJ11)","v":1},"       Mørk Svirreflue",null,null,null,null,null,null,null,null,null,null,null,null,null,null,null,null,null,null,null,null,null,null,{"$f":"IF(CA26,\"x\",\" \")","v":" "},null,0]
[null,null,null,null,null,null,null,null,null,null,null,null,null,null,null,null,{"$f":"VLOOKUP(Q24,AH54:AI66,2)","v":"Kroppen lyst behåret. Scutellum gult. 2. bagkropsled"},null,null,null,null,null,null,null,null,null,null,null,null,null,null,null,null,2,"Øjne med meget korte hår. Pande meget bredt bestø-",null,null,null,null,null,null,null,null,null,null,null,null,null,null,null,null,null,2,"        Kurve-Svirreflue",null,null,null,null,null,null,null,null,null,null,null,null,null,null,null,null,null,null,null,null,null,null," "]
["Sidepletter hvidgule og  bryst metalblåt ?",null,null,null,null,null,null,null,null,null,null,null,null,null,null,null,{"$f":"VLOOKUP(Q24,AH68:AI80,2)","v":"med små runde gule pletter. 3.og 4. led med smalle"},null,null,null,null,null,null,null,null,null,null,null,null,null,null,null,null,3,"Øjne med korte hår. Isse og pande skinnende. På pande",null,null,null,null,null,null,null,null,null,null,null,null,null,null,null,null,null,{"$f":"SUM(AR13:BJ13)","v":3},"    Håret Svirreflue",null,null,null,null,null,null,null,null,null,null,null,null,null,null,null,null,null,null,null,null,null,null,{"$f":"IF(CA28,\"x\",\" \")","v":" "},null,0]
["Bagkrop og brystoverside ikke sådan ?",null,null,null,null,null,null,null,null,null,null,null,null,null,null,null,{"$f":"VLOOKUP(Q24,AH82:AI94,2)","v":"sølvpudrede gule pleeter, der indefter smalner til, især"},null,null,null,null,null,null,null,null,null,null,null,null,null,null,null,null,4,"Øjne behårede. Ansigt bredt,  gult med sort midter-",null,null,null,null,null,null,null,null,null,null,null,null,null,null,null,null,null,{"$f":"SUM(AR14:BJ14)","v":4},"   Lysende Svirreflue",null,null,null,null,null,null,null,null,null,null,null,null,null,null,null,null,null,null,null,null,null,null,{"$f":"IF(CA29,\"x\",\" \")","v":" "},null,0]
[null,null,null,null,null,null,null,null,null,null,null,null,null,null,null,null,{"$f":"VLOOKUP(Q24,AH96:AI108,2)","v":"4.led. Ben delvis gule. Mellemste skinneben oftest "},null,null,null,null,null,null,null,null,null,null,null,null,null,null,null,null,5,"Øjne langt behårede. Pande bestøvet. Ansigt sort eller ",null,null,null,null,null,null,null,null,null,null,null,null,null,null,null,null,null,{"$f":"SUM(AR15:BJ15)","v":3},"-",null,null,null,null,null,null,null,null,null,null,null,null,null,null,null,null,null,null,null,null,null,null,{"$f":"IF(CA30,\"x\",\" \")","v":" "},null,false]
["Ben sorte,  måskelidt  gulbrune ved knæene?",null,null,null,null,null,null,null,null,null,null,null,null,null,null,null,{"$f":"VLOOKUP(Q24,AH110:AI122,2)","v":"helt gult. 8-10 mm. Forårsart, mar.-maj. Mgt. sjælden."},null,null,null,null,null,null,null,null,null,null,null,null,null,null,null,null,6,"Øjne behårede (undersg nøje). Pande sort og ubestøvet.",null,null,null,null,null,null,null,null,null,null,null,null,null,null,null,null,null,{"$f":"SUM(AR16:BJ16)","v":1},"  Firplettet Svirreflue",null,null,null,null,null,null,null,null,null,null,null,null,null,null,null,null,null,null,null,null,null,null,{"$f":"IF(CA31,\"x\",\" \")","v":" "},null,false]
["Ben mere gule, især for- og mellemben ?",null,null,null,null,null,null,null,null,null,null,null,null,null," ",null,null,null,"Melangyna HUNNER.Version1  Bent Haagen Petersen",null,null,null,null,null,null,null,null,null,null,null,null,null,null,7,"Øjne uden hår. Pande meget bredt bestøvet. Ansigt gult",null,null,null,null,null,null,null,null,null,null,null,null,null,null,null,null,null,{"$f":"SUM(AR17:BJ17)","v":1},"    Skærm-Svirreflue"]
[null,null,null,null,null,null,null,null,null,null,null,null,null,null,null,null,null,null,null,null,null,null,null,null,null,null,null,null,null,null,null,null,null,8,"."]
[null,null,null,null,null,null,null,null,null,null,null,null,null,null,null,null,null,null,null,null,null,null,null,null,null,null,null,null,null,null,null,null,null,9,"."]
[null,null,null,null,null,null,null,null,null,null,null,null,null,null,null,null,null,null,null,null,null,null,null,null,null,null,null,null,null,null,null,null,null,10,"."]
[null,null,null,null,null,null,null,null,null,null,null,null,null,null,null,null,null,null,null,null,null,null,null,null,null,null,null,null,null,null,null,null,null,11,"."]
[null,null,null,null,null,null,null,null,null,null,null,null,null,null,null,null,null,null,null,null,null,null,null,null,null,null,null,null,null,null,null,null,null,12,"."]
[null,null,null,null,null,null,null,null,null,null,null,null,null,null,null,null,null,null,null,null,null,null,null,null,null,null,null,null,null,null,null,null,null,13,"."]
[null,null,null,null,null,null,null,null,null,null,null,null,null,null,null,null,null,null,null,null,null,null,null,null,null,null,null,null,null,null,null,null,null,null,null,null,null,null,null,null,null,null,null,null,null,null,null,null,null,null,null,null,{"$f":"SUM(AR19:BJ19)","v":0},null,null,null,null,null,null,null,null,null,null,null,null,null,null,null,null,null,null,null,null,null,null,null,null,null,4]
[null,null,null,null,null,null,null,null,null,null,null,null,null,null,null,null,null,null,null,null,null,null,null,null,null,null,null,null,null,null,null,null,2,1,"på siderne, sort midterstribe. Brystets overside og",null,null,null,null,null,null,null,null,null,null,null,null,null,null,null,null,null,0]
[null,null,null,null,null,null,null,null,null,null,null,null,null,null,null,null,null,null,null,null,null,null,null,null,null,null,null,null,null,null,null,null,null,2,"vet. Ansigt gult med sort midterstribe. Pande meget",null,null,null,null,null,null,null,null,null,null,null,null,null,null,null,null,null,0]
[null,null,null,null,null,null,null,null,null,null,null,null,null,null,null,null,null,null,null,null,null,null,null,null,null,null,null,null,null,null,null,null,null,3,"tydeligt grå støvtværbånd. Ansigt gult med bred mørk",null,null,null,null,null,null,null,null,null,null,null,null,null,null,null,null,null,0]
[null,null,null,null,null,null,null,null,null,null,null,null,null,null,null,null,null,null,null,null,null,null,null,null,null,null,null,null,null,null,null,null,null,4,"stribe. Panden sort med smalt støvtværbånd, ofte brudt.",null,null,null,null,null,null,null,null,null,null,null,null,null,null,null,null,null,0]
[null,null,null,null,null,null,null,null,null,null,null,null,null,null,null,null,null,null,null,null,null,null,null,null,null,null,null,null,null,null,null,null,null,5,"gult og sort. Scutellum oftest gult, noget mørkere på",null,null,null,null,null,null,null,null,null,null,null,null,null,null,null,null,null," "]
[null,null,null,null,null,null,null,null,null,null,null,null,null,null,null,null,null,null,null,null,null,null,null,null,null,null,null,null,null,null,null,null,null,6,"Ansigt sort. Brystoversiden lyst behåret, ved siderne sort."]
[null,null,null,null,null,null,null,null,null,null,null,null,null,null,null,null,null,null,null,null,null,null,null,null,null,null,null,null,null,null,null,null,null,7,"med sort midterstribe. Brystets overside kraftigt blåt"]
[null,null,null,null,null,null,null,null,null,null,null,null,null,null,null,null,null,null,null,null,null,null,null,null,null,null,null,null,null,null,null,null,null,8,"."]
[null,null,null,null,null,null,null,null,null,null,null,null,null,null,null,null,null,null,null,null,null,null,null,null,null,null,null,null,null,null,null,null,null,9,"."]
[null,null,null,null,null,null,null,null,null,null,null,null,null,null,null,null,null,null,null,null,null,null,null,null,null,null,null,null,null,null,null,null,null,10,"."]
[null,null,null,null,null,null,null,null,null,null,null,null,null,null,null,null,null,null,null,null,null,null,null,null,null,null,null,null,null,null,null,null,null,11,"."]
[null,null,null,null,null,null,null,null,null,null,null,null,null,null,null,null,null,null,null,null,null,null,null,null,null,null,null,null,null,null,null,null,null,12,"."]
[null,null,null,null,null,null,null,null,null,null,null,null,null,null,null,null,null,null,null,null,null,null,null,null,null,null,null,null,null,null,null,null,null,12,"."]
[]
[null,null,null,null,null,null,null,null,null,null,null,null,null,null,null,null,null,null,null,null,null,null,null,null,null,null,null,null,null,null,null,null,3,1,"scutellum mest sorthårede. (Belysning gør let sorte hår"]
[null,null,null,null,null,null,null,null,null,null,null,null,null,null,null,null,null,null,null,null,null,null,null,null,null,null,null,null,null,null,null,null,null,2,"bredt bestøvet. Bagkrop med 3 par gule pletter, på 3."]
[null,null,null,null,null,null,null,null,null,null,null,null,null,null,null,null,null,null,null,null,null,null,null,null,null,null,null,null,null,null,null,null,null,3,"midterstribe. Bryst metalskinnende med lang lys be-"]
[null,null,null,null,null,null,null,null,null,null,null,null,null,null,null,null,null,null,null,null,null,null,null,null,null,null,null,null,null,null,null,null,null,4,"Kroppen lyst behåret. Scutellum gult. 2. bagkropsled"]
[null,null,null,null,null,null,null,null,null,null,null,null,null,null,null,null,null,null,null,null,null,null,null,null,null,null,null,null,null,null,null,null,null,5,"midten og med  sorte forhjørner og sidekanter. 2. bag-"]
[null,null,null,null,null,null,null,null,null,null,null,null,null,null,null,null,null,null,null,null,null,null,null,null,null,null,null,null,null,null,null,null,null,6,"Scutellum sort, ofte brunt midt på."]
[null,null,null,null,null,null,null,null,null,null,null,null,null,null,null,null,null,null,null,null,null,null,null,null,null,null,null,null,null,null,null,null,null,7,"metalskinnende. Scutellum gult, med sorte forhjørner.."]
[null,null,null,null,null,null,null,null,null,null,null,null,null,null,null,null,null,null,null,null,null,null,null,null,null,null,null,null,null,null,null,null,null,8,"."]
[null,null,null,null,null,null,null,null,null,null,null,null,null,null,null,null,null,null,null,null,null,null,null,null,null,null,null,null,null,null,null,null,null,9,"."]
[null,null,null,null,null,null,null,null,null,null,null,null,null,null,null,null,null,null,null,null,null,null,null,null,null,null,null,null,null,null,null,null,null,10,"."]
[null,null,null,null,null,null,null,null,null,null,null,null,null,null,null,null,null,null,null,null,null,null,null,null,null,null,null,null,null,null,null,null,null,11,"."]
[null,null,null,null,null,null,null,null,null,null,null,null,null,null,null,null,null,null,null,null,null,null,null,null,null,null,null,null,null,null,null,null,null,12,"."]
[null,null,null,null,null,null,null,null,null,null,null,null,null,null,null,null,null,null,null,null,null,null,null,null,null,null,null,null,null,null,null,null,null,13,"."]
[]
[null,null,null,null,null,null,null,null,null,null,null,null,null,null,null,null,null,null,null,null,null,null,null,null,null,null,null,null,null,null,null,null,4,1,"lysere). Scutellum sort, måske lidt brunt. 2.-4. bag-"]
[null,null,null,null,null,null,null,null,null,null,null,null,null,null,null,null,null,null,null,null,null,null,null,null,null,null,null,null,null,null,null,null,null,2,"og 4. led rektangulære. Ben sorte og gule. 8-11 mm."]
[null,null,null,null,null,null,null,null,null,null,null,null,null,null,null,null,null,null,null,null,null,null,null,null,null,null,null,null,null,null,null,null,null,3,"håring. Scutellum gult med sorte sidekanter. Bagkrop"]
[null,null,null,null,null,null,null,null,null,null,null,null,null,null,null,null,null,null,null,null,null,null,null,null,null,null,null,null,null,null,null,null,null,4,"med små runde gule pletter. 3.og 4. led med smalle"]
[null,null,null,null,null,null,null,null,null,null,null,null,null,null,null,null,null,null,null,null,null,null,null,null,null,null,null,null,null,null,null,null,null,5,"kropsled med små runde gule pletter,  3. og 4. med"]
[null,null,null,null,null,null,null,null,null,null,null,null,null,null,null,null,null,null,null,null,null,null,null,null,null,null,null,null,null,null,null,null,null,6,"håring. Ingen andre sorte  syrphider har dis kendetegn."]
[null,null,null,null,null,null,null,null,null,null,null,null,null,null,null,null,null,null,null,null,null,null,null,null,null,null,null,null,null,null,null,null,null,7,"Bagkrop med 3 par hvidgule pletter, på 3. og 4. led"]
[null,null,null,null,null,null,null,null,null,null,null,null,null,null,null,null,null,null,null,null,null,null,null,null,null,null,null,null,null,null,null,null,null,8,"."]
[null,null,null,null,null,null,null,null,null,null,null,null,null,null,null,null,null,null,null,null,null,null,null,null,null,null,null,null,null,null,null,null,null,9,"."]
[null,null,null,null,null,null,null,null,null,null,null,null,null,null,null,null,null,null,null,null,null,null,null,null,null,null,null,null,null,null,null,null,null,10,"."]
[null,null,null,null,null,null,null,null,null,null,null,null,null,null,null,null,null,null,null,null,null,null,null,null,null,null,null,null,null,null,null,null,null,11,"."]
[null,null,null,null,null,null,null,null,null,null,null,null,null,null,null,null,null,null,null,null,null,null,null,null,null,null,null,null,null,null,null,null,null,12,"."]
[null,null,null,null,null,null,null,null,null,null,null,null,null,null,null,null,null,null,null,null,null,null,null,null,null,null,null,null,null,null,null,null,null,13,"."]
[]
[null,null,null,null,null,null,null,null,null,null,null,null,null,null,null,null,null,null,null,null,null,null,null,null,null,null,null,null,null,null,null,null,5,1,"kropsled med gule rektangulære pletter. Ben sorte,"]
[null,null,null,null,null,null,null,null,null,null,null,null,null,null,null,null,null,null,null,null,null,null,null,null,null,null,null,null,null,null,null,null,null,2,"Sommerart, jun.-aug. Ret sjælden."]
[null,null,null,null,null,null,null,null,null,null,null,null,null,null,null,null,null,null,null,null,null,null,null,null,null,null,null,null,null,null,null,null,null,3,"med ret smalle noget ovale gule pletter, på andet led"]
[null,null,null,null,null,null,null,null,null,null,null,null,null,null,null,null,null,null,null,null,null,null,null,null,null,null,null,null,null,null,null,null,null,4,"sølvpudrede gule pleeter, der indefter smalner til, især"]
[null,null,null,null,null,null,null,null,null,null,null,null,null,null,null,null,null,null,null,null,null,null,null,null,null,null,null,null,null,null,null,null,null,5,"smalle rektangulære  gule pletter.  Benene er delvis gu-"]
[null,null,null,null,null,null,null,null,null,null,null,null,null,null,null,null,null,null,null,null,null,null,null,null,null,null,null,null,null,null,null,null,null,6,"Bagkroppen er sort. Også benene er  sorte, måske"]
[null,null,null,null,null,null,null,null,null,null,null,null,null,null,null,null,null,null,null,null,null,null,null,null,null,null,null,null,null,null,null,null,null,7,"rektangulære. Ben sorte og gule. 9-10 mm.  Sommer-"]
[null,null,null,null,null,null,null,null,null,null,null,null,null,null,null,null,null,null,null,null,null,null,null,null,null,null,null,null,null,null,null,null,null,8,"."]
[null,null,null,null,null,null,null,null,null,null,null,null,null,null,null,null,null,null,null,null,null,null,null,null,null,null,null,null,null,null,null,null,null,9,"."]
[null,null,null,null,null,null,null,null,null,null,null,null,null,null,null,null,null,null,null,null,null,null,null,null,null,null,null,null,null,null,null,null,null,10,"."]
[null,null,null,null,null,null,null,null,null,null,null,null,null,null,null,null,null,null,null,null,null,null,null,null,null,null,null,null,null,null,null,null,null,11,"."]
[null,null,null,null,null,null,null,null,null,null,null,null,null,null,null,null,null,null,null,null,null,null,null,null,null,null,null,null,null,null,null,null,null,12,"."]
[null,null,null,null,null,null,null,null,null,null,null,null,null,null,null,null,null,null,null,null,null,null,null,null,null,null,null,null,null,null,null,null,null,13,"."]
[]
[null,null,null,null,null,null,null,null,null,null,null,null,null,null,null,null,null,null,null,null,null,null,null,null,null,null,null,null,null,null,null,null,6,1,"for- og mellemben lidt gulbrune. 7-8 mm. Forårs-"]
[null,null,null,null,null,null,null,null,null,null,null,null,null,null,null,null,null,null,null,null,null,null,null,null,null,null,null,null,null,null,null,null,null,2,"Melangyna labiatarum regnes for at være en variant"]
[null,null,null,null,null,null,null,null,null,null,null,null,null,null,null,null,null,null,null,null,null,null,null,null,null,null,null,null,null,null,null,null,null,3,"aldrig små og runde. Ben mørke, forreste skinneben "]
[null,null,null,null,null,null,null,null,null,null,null,null,null,null,null,null,null,null,null,null,null,null,null,null,null,null,null,null,null,null,null,null,null,4,"4.led. Ben delvis gule. Mellemste skinneben oftest "]
[null,null,null,null,null,null,null,null,null,null,null,null,null,null,null,null,null,null,null,null,null,null,null,null,null,null,null,null,null,null,null,null,null,5,"le. 7-8 mm. Forårsart, mar--maj. Nyere art, som er"]
[null,null,null,null,null,null,null,null,null,null,null,null,null,null,null,null,null,null,null,null,null,null,null,null,null,null,null,null,null,null,null,null,null,6,"lidt brunere ved knæene. 6-9 mm. Forårsart, mar.-maj."]
[null,null,null,null,null,null,null,null,null,null,null,null,null,null,null,null,null,null,null,null,null,null,null,null,null,null,null,null,null,null,null,null,null,7,"art,  maj-aug. Ikke almindelig."]
[null,null,null,null,null,null,null,null,null,null,null,null,null,null,null,null,null,null,null,null,null,null,null,null,null,null,null,null,null,null,null,null,null,8,"."]
[null,null,null,null,null,null,null,null,null,null,null,null,null,null,null,null,null,null,null,null,null,null,null,null,null,null,null,null,null,null,null,null,null,9,"."]
[null,null,null,null,null,null,null,null,null,null,null,null,null,null,null,null,null,null,null,null,null,null,null,null,null,null,null,null,null,null,null,null,null,10,"."]
[null,null,null,null,null,null,null,null,null,null,null,null,null,null,null,null,null,null,null,null,null,null,null,null,null,null,null,null,null,null,null,null,null,11,"."]
[null,null,null,null,null,null,null,null,null,null,null,null,null,null,null,null,null,null,null,null,null,null,null,null,null,null,null,null,null,null,null,null,null,12,"."]
[null,null,null,null,null,null,null,null,null,null,null,null,null,null,null,null,null,null,null,null,null,null,null,null,null,null,null,null,null,null,null,null,null,13,"."]
[]
[null,null,null,null,null,null,null,null,null,null,null,null,null,null,null,null,null,null,null,null,null,null,null,null,null,null,null,null,null,null,null,null,7,1,"art. Mar.-maj. Sjælden på Øerne, hyppigere i Jylland."]
[null,null,null,null,null,null,null,null,null,null,null,null,null,null,null,null,null,null,null,null,null,null,null,null,null,null,null,null,null,null,null,null,null,2,"med bl. a. tydeligere og tættere behåring på øjnene."]
[null,null,null,null,null,null,null,null,null,null,null,null,null,null,null,null,null,null,null,null,null,null,null,null,null,null,null,null,null,null,null,null,null,3,"ret lyse .8-11 mm. Forårsart, mar.-maj.  Ret alm.."]
[null,null,null,null,null,null,null,null,null,null,null,null,null,null,null,null,null,null,null,null,null,null,null,null,null,null,null,null,null,null,null,null,null,4,"helt gult. 8-10 mm. Forårsart, mar.-maj. Mgt. sjælden."]
[null,null,null,null,null,null,null,null,null,null,null,null,null,null,null,null,null,null,null,null,null,null,null,null,null,null,null,null,null,null,null,null,null,5,"under udbredelsese i Danmark."]
[null,null,null,null,null,null,null,null,null,null,null,null,null,null,null,null,null,null,null,null,null,null,null,null,null,null,null,null,null,null,null,null,null,6,"Temmelig sjælden."]
[null,null,null,null,null,null,null,null,null,null,null,null,null,null,null,null,null,null,null,null,null,null,null,null,null,null,null,null,null,null,null,null,null,7,"."]
[null,null,null,null,null,null,null,null,null,null,null,null,null,null,null,null,null,null,null,null,null,null,null,null,null,null,null,null,null,null,null,null,null,8,"."]
[null,null,null,null,null,null,null,null,null,null,null,null,null,null,null,null,null,null,null,null,null,null,null,null,null,null,null,null,null,null,null,null,null,9,"."]
[null,null,null,null,null,null,null,null,null,null,null,null,null,null,null,null,null,null,null,null,null,null,null,null,null,null,null,null,null,null,null,null,null,10,"."]
[null,null,null,null,null,null,null,null,null,null,null,null,null,null,null,null,null,null,null,null,null,null,null,null,null,null,null,null,null,null,null,null,null,11,"."]
[null,null,null,null,null,null,null,null,null,null,null,null,null,null,null,null,null,null,null,null,null,null,null,null,null,null,null,null,null,null,null,null,null,12,"."]
[null,null,null,null,null,null,null,null,null,null,null,null,null,null,null,null,null,null,null,null,null,null,null,null,null,null,null,null,null,null,null,null,null,13,"."]

{"sheet":"Ark2","index":1,"n_rows":0,"n_cols":0,"rows_kept":0,"cut":false,"hidden":false,"merged":[]}

{"sheet":"Ark3","index":2,"n_rows":0,"n_cols":0,"rows_kept":0,"cut":false,"hidden":false,"merged":[]}

{"sheet":"Ark4","index":3,"n_rows":0,"n_cols":0,"rows_kept":0,"cut":false,"hidden":false,"merged":[]}

{"sheet":"Ark5","index":4,"n_rows":0,"n_cols":0,"rows_kept":0,"cut":false,"hidden":false,"merged":[]}

{"sheet":"Ark6","index":5,"n_rows":0,"n_cols":0,"rows_kept":0,"cut":false,"hidden":false,"merged":[]}